[Event "Late-Titled-Tuesday-Blitz-October-03-2023"]
[Site "Chess.com"]
[Date "2023.10.03"]
[Round "11"]
[White "marik_spb"]
[Black "Ducke13"]
[Result "1-0"]
[WhiteElo "2398"]
[BlackElo "2468"]
[TimeControl "180+1"]
[EndTime "16:03:19 PDT"]
[Termination "marik_spb won on time"]

1. d4 {[%clk 0:02:48]} 1... Nf6 {[%clk 0:02:57.9]} 2. c4 {[%clk 0:02:48]} 2...
g6 {[%clk 0:02:58.3]} 3. Nf3 {[%clk 0:02:48.6]} 3... Bg7 {[%clk 0:02:58.7]} 4.
g3 {[%clk 0:02:49.5]} 4... c5 {[%clk 0:02:56.6]} 5. Bg2 {[%clk 0:02:50.4]} 5...
cxd4 {[%clk 0:02:56.4]} 6. Nxd4 {[%clk 0:02:50.9]} 6... O-O {[%clk 0:02:57.3]}
7. O-O {[%clk 0:02:51]} 7... Nc6 {[%clk 0:02:58]} 8. Nc3 {[%clk 0:02:50.6]} 8...
Qa5 {[%clk 0:02:58.6]} 9. Rb1 {[%clk 0:02:43.9]} 9... d6 {[%clk 0:02:48.9]} 10.
Nxc6 {[%clk 0:02:39.2]} 10... bxc6 {[%clk 0:02:48.8]} 11. Bxc6 {[%clk
0:02:29.6]} 11... Rb8 {[%clk 0:02:48.6]} 12. Qa4 {[%clk 0:02:26.1]} 12... Qh5
{[%clk 0:02:46.6]} 13. Bg2 {[%clk 0:02:20.5]} 13... Ng4 {[%clk 0:02:46.5]} 14.
h4 {[%clk 0:02:16.1]} 14... Bxc3 {[%clk 0:02:43.9]} 15. Qxa7 {[%clk 0:02:08.6]}
15... Be6 {[%clk 0:02:29.2]} 16. Bg5 {[%clk 0:01:21.4]} 16... Bf6 {[%clk
0:02:26.4]} 17. Bxf6 {[%clk 0:01:18.2]} 17... exf6 {[%clk 0:02:23.5]} 18. b3
{[%clk 0:01:09.7]} 18... Qe5 {[%clk 0:02:17.2]} 19. e3 {[%clk 0:01:04.6]} 19...
h5 {[%clk 0:02:11.4]} 20. Qd4 {[%clk 0:00:59]} 20... f5 {[%clk 0:01:52.7]} 21.
a4 {[%clk 0:00:56.6]} 21... Qc5 {[%clk 0:01:46.4]} 22. Rfd1 {[%clk 0:00:53]}
22... Rfd8 {[%clk 0:01:40.3]} 23. Qxc5 {[%clk 0:00:19.4]} 23... dxc5 {[%clk
0:01:41.2]} 24. Rxd8+ {[%clk 0:00:19.6]} 24... Rxd8 {[%clk 0:01:41.8]} 25. a5
{[%clk 0:00:20.5]} 25... Bc8 {[%clk 0:01:37.4]} 26. b4 {[%clk 0:00:20.8]} 26...
cxb4 {[%clk 0:01:36.7]} 27. Rxb4 {[%clk 0:00:21.7]} 27... Ba6 {[%clk 0:01:30.9]}
28. Bd5 {[%clk 0:00:15]} 28... Ne5 {[%clk 0:01:27.7]} 29. f4 {[%clk 0:00:12.3]}
29... Ng4 {[%clk 0:01:17.9]} 30. Rb6 {[%clk 0:00:12.4]} 30... Bxc4 {[%clk
0:00:31.9]} 31. Bxc4 {[%clk 0:00:10.5]} 31... Nxe3 {[%clk 0:00:32.6]} 32. Rxg6+
{[%clk 0:00:10.4]} 32... Kf8 {[%clk 0:00:30.7]} 33. Rc6 {[%clk 0:00:10.9]} 33...
Rd2 {[%clk 0:00:23.5]} 34. a6 {[%clk 0:00:10.6]} 34... Nxc4 {[%clk 0:00:09]} 35.
a7 {[%clk 0:00:09.6]} 35... Ra2 {[%clk 0:00:08]} 36. Rc8+ {[%clk 0:00:09.9]}
36... Ke7 {[%clk 0:00:08]} 37. a8=Q {[%clk 0:00:10.4]} 37... Rxa8 {[%clk
0:00:07.8]} 38. Rxa8 {[%clk 0:00:11.3]} 38... Nd2 {[%clk 0:00:06.5]} 39. Kf2
{[%clk 0:00:10.3]} 39... Kf6 {[%clk 0:00:06.1]} 40. Ra6+ {[%clk 0:00:09.5]}
40... Kg7 {[%clk 0:00:06]} 41. Ke3 {[%clk 0:00:07.9]} 41... Ne4 {[%clk 0:00:05]}
42. Kf3 {[%clk 0:00:07.1]} 42... Nd2+ {[%clk 0:00:05.6]} 43. Ke2 {[%clk
0:00:04.7]} 43... Ne4 {[%clk 0:00:05.9]} 44. Ra3 {[%clk 0:00:04.4]} 44... Kg6
{[%clk 0:00:05.7]} 45. Kf3 {[%clk 0:00:04.1]} 45... Nd2+ {[%clk 0:00:05.5]} 46.
Kg2 {[%clk 0:00:04.2]} 46... Ne4 {[%clk 0:00:05.6]} 47. Ra4 {[%clk 0:00:04.4]}
47... Kf6 {[%clk 0:00:05.3]} 48. Rd4 {[%clk 0:00:04.8]} 48... Kg6 {[%clk
0:00:05.3]} 49. Kf3 {[%clk 0:00:05]} 49... Kf6 {[%clk 0:00:05.1]} 50. Rxe4
{[%clk 0:00:03.1]} 50... fxe4+ {[%clk 0:00:05.2]} 51. Kxe4 {[%clk 0:00:04]}
51... Ke6 {[%clk 0:00:05.7]} 52. f5+ {[%clk 0:00:04.2]} 52... Ke7 {[%clk
0:00:01.2]} 53. Ke5 {[%clk 0:00:03.7]} 53... f6+ {[%clk 0:00:01.4]} 54. Kd5
{[%clk 0:00:03.7]} 54... Kd7 {[%clk 0:00:02]} 55. Kc5 {[%clk 0:00:04]} 55... Kc7
{[%clk 0:00:02.1]} 56. Kd5 {[%clk 0:00:03.3]} 56... Kd7 {[%clk 0:00:02.6]} 57.
Ke4 {[%clk 0:00:03.4]} 57... Kd6 {[%clk 0:00:02.8]} 58. Kf4 {[%clk 0:00:03.1]}
58... Ke7 {[%clk 0:00:02.9]} 59. g4 {[%clk 0:00:02.7]} 59... hxg4 {[%clk
0:00:03.3]} 60. Kxg4 {[%clk 0:00:03.6]} 60... Kf7 {[%clk 0:00:03.8]} 61. Kf4
{[%clk 0:00:04.1]} 61... Kg7 {[%clk 0:00:03.6]} 62. Ke4 {[%clk 0:00:04.4]} 62...
Kf7 {[%clk 0:00:02.8]} 63. Kd5 {[%clk 0:00:05]} 63... Ke7 {[%clk 0:00:01.9]} 64.
Kc5 {[%clk 0:00:05.3]} 64... Kd7 {[%clk 0:00:02.2]} 65. h5 {[%clk 0:00:05.9]}
65... Ke7 {[%clk 0:00:02.6]} 66. Kc6 {[%clk 0:00:06.1]} 66... Kf7 {[%clk
0:00:03.1]} 67. Kd6 {[%clk 0:00:06.8]} 67... Kg7 {[%clk 0:00:03.7]} 68. Ke6
{[%clk 0:00:07.5]} 68... Kh6 {[%clk 0:00:02.6]} 69. Kxf6 {[%clk 0:00:08.4]}
69... Kh7 {[%clk 0:00:02.3]} 70. Ke6 {[%clk 0:00:09.3]} 70... Kg7 {[%clk
0:00:02.4]} 71. f6+ {[%clk 0:00:09.3]} 71... Kg8 {[%clk 0:00:02.3]} 72. h6
{[%clk 0:00:09.7]} 1-0

[Event "Late-Titled-Tuesday-Blitz-October-03-2023"]
[Site "Chess.com"]
[Date "2023.10.03"]
[Round "11"]
[White "Bala-Afiada"]
[Black "campochess"]
[Result "1/2-1/2"]
[WhiteElo "1936"]
[BlackElo "2131"]
[TimeControl "180+1"]
[EndTime "16:03:24 PDT"]
[Termination "Game drawn - insufficient material"]

1. d4 {[%clk 0:03:00.9]} 1... Nf6 {[%clk 0:02:53.9]} 2. c4 {[%clk 0:03:01.4]}
2... g6 {[%clk 0:02:52.6]} 3. Nc3 {[%clk 0:03:01.3]} 3... d5 {[%clk 0:02:52.8]}
4. cxd5 {[%clk 0:03:02.2]} 4... Nxd5 {[%clk 0:02:51.6]} 5. e4 {[%clk 0:03:03.1]}
5... Nxc3 {[%clk 0:02:51.2]} 6. bxc3 {[%clk 0:03:04]} 6... Bg7 {[%clk
0:02:50.9]} 7. Be3 {[%clk 0:03:04.4]} 7... c5 {[%clk 0:02:50.9]} 8. Bc4 {[%clk
0:03:04.6]} 8... O-O {[%clk 0:02:49.7]} 9. Ne2 {[%clk 0:03:04.9]} 9... Qc7
{[%clk 0:02:49.8]} 10. Rc1 {[%clk 0:03:00.5]} 10... Rd8 {[%clk 0:02:47.9]} 11.
O-O {[%clk 0:02:59.6]} 11... Nc6 {[%clk 0:02:47.8]} 12. f3 {[%clk 0:02:49.8]}
12... Rb8 {[%clk 0:02:44.4]} 13. Bf4 {[%clk 0:02:49.6]} 13... e5 {[%clk
0:02:42.1]} 14. Bg5 {[%clk 0:02:47]} 14... Rd7 {[%clk 0:02:31.6]} 15. d5 {[%clk
0:02:42.3]} 15... b5 {[%clk 0:02:30.1]} 16. Bb3 {[%clk 0:02:36.4]} 16... c4
{[%clk 0:02:29.7]} 17. Bc2 {[%clk 0:02:36.2]} 17... Na5 {[%clk 0:02:17.4]} 18.
Be3 {[%clk 0:02:27.6]} 18... Bf8 {[%clk 0:02:10.3]} 19. Qe1 {[%clk 0:02:24.3]}
19... Bc5 {[%clk 0:02:09.9]} 20. Qf2 {[%clk 0:02:24.8]} 20... Bxe3 {[%clk
0:02:09.4]} 21. Qxe3 {[%clk 0:02:25.7]} 21... Nb7 {[%clk 0:02:05.3]} 22. f4
{[%clk 0:02:23.7]} 22... Re7 {[%clk 0:01:42.8]} 23. Rb1 {[%clk 0:02:08.2]} 23...
Nd6 {[%clk 0:01:38.3]} 24. f5 {[%clk 0:01:58.1]} 24... Qb6 {[%clk 0:01:27.1]}
25. Qxb6 {[%clk 0:01:55.2]} 25... Rxb6 {[%clk 0:01:25.1]} 26. f6 {[%clk
0:01:42.8]} 26... Reb7 {[%clk 0:01:17.6]} 27. g4 {[%clk 0:01:37.8]} 27... b4
{[%clk 0:01:17]} 28. cxb4 {[%clk 0:01:36.4]} 28... Rxb4 {[%clk 0:01:16.4]} 29.
Rxb4 {[%clk 0:01:31.7]} 29... Rxb4 {[%clk 0:01:16.3]} 30. Rb1 {[%clk 0:01:32.5]}
30... Rxb1+ {[%clk 0:01:14.5]} 31. Bxb1 {[%clk 0:01:33.4]} 31... g5 {[%clk
0:01:11.5]} 32. h3 {[%clk 0:01:27.4]} 32... Ne8 {[%clk 0:01:09.9]} 33. Nc3
{[%clk 0:01:16.6]} 33... Nxf6 {[%clk 0:01:08.6]} 34. Nb5 {[%clk 0:01:16.1]}
34... h5 {[%clk 0:01:02.4]} 35. Nxa7 {[%clk 0:01:08.1]} 35... Bd7 {[%clk
0:01:01.4]} 36. Nc6 {[%clk 0:01:03.6]} 36... hxg4 {[%clk 0:00:51.4]} 37. hxg4
{[%clk 0:01:03.2]} 37... Nxg4 {[%clk 0:00:46.9]} 38. a4 {[%clk 0:01:02.6]} 38...
Kf8 {[%clk 0:00:41.6]} 39. a5 {[%clk 0:01:02.6]} 39... Bc8 {[%clk 0:00:41.7]}
40. Nb8 {[%clk 0:00:28.8]} 40... Ke7 {[%clk 0:00:23.9]} 41. a6 {[%clk
0:00:28.7]} 41... Kd8 {[%clk 0:00:21.3]} 42. a7 {[%clk 0:00:26.8]} 42... Bb7
{[%clk 0:00:20.8]} 43. Nc6+ {[%clk 0:00:24.2]} 43... Kc7 {[%clk 0:00:20.9]} 44.
Na5 {[%clk 0:00:20.4]} 44... c3 {[%clk 0:00:19.7]} 45. Bd3 {[%clk 0:00:13.6]}
45... Ne3 {[%clk 0:00:18.3]} 46. Nb3 {[%clk 0:00:09.3]} 46... c2 {[%clk
0:00:16.8]} 47. Kf2 {[%clk 0:00:08.2]} 47... Nd1+ {[%clk 0:00:16.3]} 48. Ke2
{[%clk 0:00:06.3]} 48... Nc3+ {[%clk 0:00:15.9]} 49. Kd2 {[%clk 0:00:06.4]}
49... Na4 {[%clk 0:00:15.8]} 50. Kxc2 {[%clk 0:00:06.4]} 50... Kb6 {[%clk
0:00:16]} 51. Nd2 {[%clk 0:00:04.1]} 51... Kxa7 {[%clk 0:00:15.8]} 52. Nc4
{[%clk 0:00:05]} 52... f6 {[%clk 0:00:14]} 53. Be2 {[%clk 0:00:04.7]} 53... Nc5
{[%clk 0:00:13.9]} 54. d6 {[%clk 0:00:05]} 54... Bxe4+ {[%clk 0:00:13]} 55. Kc3
{[%clk 0:00:04.8]} 55... Bf5 {[%clk 0:00:12.7]} 56. d7 {[%clk 0:00:04.1]} 56...
Nxd7 {[%clk 0:00:11.8]} 57. Nd6 {[%clk 0:00:04.8]} 57... Kb6 {[%clk 0:00:11.8]}
58. Nxf5 {[%clk 0:00:04.7]} 58... Kc5 {[%clk 0:00:11.9]} 59. Bg4 {[%clk
0:00:04.2]} 59... Nb6 {[%clk 0:00:10.3]} 60. Kd3 {[%clk 0:00:04.6]} 60... Nd5
{[%clk 0:00:10.3]} 61. Ke4 {[%clk 0:00:05.1]} 61... Nf4 {[%clk 0:00:10.2]} 62.
Nh6 {[%clk 0:00:05.4]} 62... Ng2 {[%clk 0:00:09.6]} 63. Ng8 {[%clk 0:00:05.3]}
63... Ne1 {[%clk 0:00:08]} 64. Nxf6 {[%clk 0:00:04.6]} 64... Kd6 {[%clk
0:00:08]} 65. Kf5 {[%clk 0:00:04.2]} 65... Nd3 {[%clk 0:00:07.3]} 66. Ne4+
{[%clk 0:00:04.7]} 66... Kd5 {[%clk 0:00:07]} 67. Kxg5 {[%clk 0:00:05.4]} 67...
Nf4 {[%clk 0:00:06.4]} 68. Bf5 {[%clk 0:00:06.3]} 68... Ng2 {[%clk 0:00:05.6]}
69. Kf6 {[%clk 0:00:06.7]} 69... Ne3 {[%clk 0:00:05.5]} 70. Bg6 {[%clk
0:00:06.7]} 70... Kd4 {[%clk 0:00:04.5]} 71. Ng5 {[%clk 0:00:07.2]} 71... Nd5+
{[%clk 0:00:04.1]} 72. Ke6 {[%clk 0:00:07.2]} 72... Nc3 {[%clk 0:00:02.3]} 73.
Nf7 {[%clk 0:00:06.9]} 73... e4 {[%clk 0:00:02]} 74. Bxe4 {[%clk 0:00:07.1]}
74... Kxe4 {[%clk 0:00:01.2]} 1/2-1/2

[Event "Late-Titled-Tuesday-Blitz-October-03-2023"]
[Site "Chess.com"]
[Date "2023.10.03"]
[Round "11"]
[White "TheMagician"]
[Black "KNVB"]
[Result "0-1"]
[WhiteElo "2270"]
[BlackElo "2697"]
[TimeControl "180+1"]
[EndTime "16:03:46 PDT"]
[Termination "KNVB won by checkmate"]

1. c4 {[%clk 0:03:00.9]} 1... e5 {[%clk 0:02:57.2]} 2. d3 {[%clk 0:03:01.2]}
2... Nf6 {[%clk 0:02:53.3]} 3. Nc3 {[%clk 0:03:00.7]} 3... Nc6 {[%clk
0:02:15.1]} 4. g3 {[%clk 0:02:57.9]} 4... d5 {[%clk 0:02:14]} 5. cxd5 {[%clk
0:02:57.3]} 5... Nxd5 {[%clk 0:02:14.9]} 6. Bg2 {[%clk 0:02:57.2]} 6... Be6
{[%clk 0:02:15.2]} 7. Nf3 {[%clk 0:02:55.1]} 7... Be7 {[%clk 0:02:06.8]} 8. O-O
{[%clk 0:02:49.6]} 8... O-O {[%clk 0:02:05.6]} 9. Ne4 {[%clk 0:02:45.8]} 9... f6
{[%clk 0:02:02.5]} 10. a3 {[%clk 0:02:41.2]} 10... a5 {[%clk 0:01:57.7]} 11. Qc2
{[%clk 0:02:39.1]} 11... Qd7 {[%clk 0:01:46.3]} 12. Nc5 {[%clk 0:02:35.2]} 12...
Bxc5 {[%clk 0:01:46.4]} 13. Qxc5 {[%clk 0:02:35]} 13... Rfd8 {[%clk 0:01:18.5]}
14. Bd2 {[%clk 0:02:20.1]} 14... b6 {[%clk 0:00:16]} 15. Qc2 {[%clk 0:02:10.7]}
15... Nde7 {[%clk 0:00:09.6]} 16. Bc3 {[%clk 0:01:35.2]} 16... a4 {[%clk
0:00:02.3]} 17. Nd2 {[%clk 0:01:21.9]} 17... Bd5 {[%clk 0:00:02.8]} 18. Rfc1
{[%clk 0:01:04.4]} 18... Bxg2 {[%clk 0:00:02.5]} 19. Kxg2 {[%clk 0:01:04.7]}
19... Qd5+ {[%clk 0:00:02.6]} 20. Kg1 {[%clk 0:01:04.8]} 20... Rd7 {[%clk
0:00:02.8]} 21. b4 {[%clk 0:01:03]} 21... axb3 {[%clk 0:00:02.9]} 22. Qxb3
{[%clk 0:01:03.3]} 22... Qxb3 {[%clk 0:00:02.8]} 23. Nxb3 {[%clk 0:01:03.5]}
23... Ra4 {[%clk 0:00:02.4]} 24. Bb2 {[%clk 0:01:02.3]} 24... Kf7 {[%clk
0:00:02.3]} 25. Rc2 {[%clk 0:01:02.4]} 25... Na5 {[%clk 0:00:02]} 26. Nxa5
{[%clk 0:01:01.8]} 26... Rxa5 {[%clk 0:00:02.9]} 27. Rac1 {[%clk 0:01:02]} 27...
c6 {[%clk 0:00:02]} 28. Bc3 {[%clk 0:00:58.3]} 28... Ra4 {[%clk 0:00:02.5]} 29.
Bb4 {[%clk 0:00:58.4]} 29... c5 {[%clk 0:00:03.1]} 30. Bxc5 {[%clk 0:00:58]}
30... bxc5 {[%clk 0:00:03.4]} 31. Rxc5 {[%clk 0:00:58.5]} 31... Rxa3 {[%clk
0:00:03.3]} 32. Rc7 {[%clk 0:00:57.1]} 32... Ra7 {[%clk 0:00:03.1]} 33. Rxa7
{[%clk 0:00:56.3]} 33... Rxa7 {[%clk 0:00:03.4]} 34. Kf1 {[%clk 0:00:56.6]}
34... Rd7 {[%clk 0:00:03.9]} 35. Rc5 {[%clk 0:00:56.3]} 35... Ke6 {[%clk
0:00:04.4]} 36. f4 {[%clk 0:00:55.8]} 36... Rd5 {[%clk 0:00:03.9]} 37. Rc7
{[%clk 0:00:54.9]} 37... Rd7 {[%clk 0:00:03.4]} 38. Rc2 {[%clk 0:00:53.8]} 38...
Nd5 {[%clk 0:00:03.5]} 39. f5+ {[%clk 0:00:46.5]} 39... Kf7 {[%clk 0:00:02.3]}
40. Ra2 {[%clk 0:00:46]} 40... Ne3+ {[%clk 0:00:02.5]} 41. Kf2 {[%clk
0:00:46.5]} 41... Nxf5 {[%clk 0:00:03.4]} 42. g4 {[%clk 0:00:45.5]} 42... Nd4
{[%clk 0:00:03.7]} 43. e3 {[%clk 0:00:42.5]} 43... Ne6 {[%clk 0:00:04.1]} 44.
Ke2 {[%clk 0:00:42.9]} 44... Nc5 {[%clk 0:00:03.5]} 45. Ra3 {[%clk 0:00:42.2]}
45... Kg6 {[%clk 0:00:02.9]} 46. Rc3 {[%clk 0:00:42]} 46... Nxd3 {[%clk
0:00:03.1]} 47. h4 {[%clk 0:00:36.5]} 47... h5 {[%clk 0:00:03.3]} 48. Kf3 {[%clk
0:00:33.5]} 48... hxg4+ {[%clk 0:00:03.3]} 49. Kxg4 {[%clk 0:00:33.7]} 49...
Nf2+ {[%clk 0:00:03.5]} 50. Kf3 {[%clk 0:00:33.3]} 50... Nd3 {[%clk 0:00:02.5]}
51. Kg4 {[%clk 0:00:33.3]} 51... f5+ {[%clk 0:00:03]} 52. Kf3 {[%clk 0:00:33]}
52... e4+ {[%clk 0:00:03.4]} 53. Kg3 {[%clk 0:00:32.3]} 53... Kf6 {[%clk
0:00:03.1]} 54. Rc6+ {[%clk 0:00:32.3]} 54... Kf7 {[%clk 0:00:03]} 55. h5 {[%clk
0:00:32.7]} 55... Re7 {[%clk 0:00:02.8]} 56. h6 {[%clk 0:00:32.9]} 56... gxh6
{[%clk 0:00:02.5]} 57. Rxh6 {[%clk 0:00:32.4]} 57... Re6 {[%clk 0:00:03.3]} 58.
Rh7+ {[%clk 0:00:32.2]} 58... Kg6 {[%clk 0:00:03.5]} 59. Ra7 {[%clk 0:00:32.8]}
59... Kg5 {[%clk 0:00:03.5]} 60. Rg7+ {[%clk 0:00:31.9]} 60... Rg6 {[%clk
0:00:04]} 61. Ra7 {[%clk 0:00:31.7]} 61... Kf6+ {[%clk 0:00:04.6]} 62. Kh4
{[%clk 0:00:27.6]} 62... Rg1 {[%clk 0:00:03.4]} 63. Ra6+ {[%clk 0:00:26.3]}
63... Ke5 {[%clk 0:00:03.5]} 64. Ra5+ {[%clk 0:00:26.3]} 64... Ke6 {[%clk
0:00:03.9]} 65. Ra6+ {[%clk 0:00:26.4]} 65... Kd5 {[%clk 0:00:04.2]} 66. Ra5+
{[%clk 0:00:26.8]} 66... Nc5 {[%clk 0:00:04.6]} 67. Kh5 {[%clk 0:00:25.7]} 67...
Kc4 {[%clk 0:00:04.3]} 68. Ra3 {[%clk 0:00:23.7]} 68... Kb4 {[%clk 0:00:03.2]}
69. Ra7 {[%clk 0:00:23.3]} 69... Rf1 {[%clk 0:00:02.3]} 70. Rf7 {[%clk
0:00:23.2]} 70... Rf3 {[%clk 0:00:03.2]} 71. Kh4 {[%clk 0:00:23]} 71... Nb3
{[%clk 0:00:02.9]} 72. Rb7+ {[%clk 0:00:22.2]} 72... Kc3 {[%clk 0:00:03.2]} 73.
Rc7+ {[%clk 0:00:23.1]} 73... Kb2 {[%clk 0:00:03.2]} 74. Rb7 {[%clk 0:00:24]}
74... Rxe3 {[%clk 0:00:03.5]} 75. Kg5 {[%clk 0:00:23.6]} 75... Rf3 {[%clk
0:00:04.4]} 76. Rh7 {[%clk 0:00:20.9]} 76... Kc3 {[%clk 0:00:05]} 77. Rh2 {[%clk
0:00:20.6]} 77... Kd3 {[%clk 0:00:05.1]} 78. Rb2 {[%clk 0:00:19.4]} 78... Nd4
{[%clk 0:00:05.3]} 79. Rb8 {[%clk 0:00:19]} 79... e3 {[%clk 0:00:05.7]} 80. Re8
{[%clk 0:00:18.1]} 80... e2 {[%clk 0:00:06.1]} 81. Kh4 {[%clk 0:00:18.2]} 81...
Re3 {[%clk 0:00:06.2]} 82. Rxe3+ {[%clk 0:00:17.1]} 82... Kxe3 {[%clk
0:00:06.5]} 83. Kg5 {[%clk 0:00:18]} 83... e1=Q {[%clk 0:00:06.2]} 84. Kf6
{[%clk 0:00:17.9]} 84... Qg3 {[%clk 0:00:05.9]} 85. Ke7 {[%clk 0:00:16.3]} 85...
Qe5+ {[%clk 0:00:05.7]} 86. Kd7 {[%clk 0:00:16.3]} 86... Qe6+ {[%clk 0:00:06]}
87. Kc7 {[%clk 0:00:16.6]} 87... Qc6+ {[%clk 0:00:06.1]} 88. Kd8 {[%clk
0:00:16.6]} 88... Qb7 {[%clk 0:00:06.1]} 89. Ke8 {[%clk 0:00:16.8]} 89... Ke4
{[%clk 0:00:07]} 90. Kf8 {[%clk 0:00:17.4]} 90... Ke5 {[%clk 0:00:07.9]} 91. Kg8
{[%clk 0:00:17.7]} 91... Kf6 {[%clk 0:00:08.8]} 92. Kh8 {[%clk 0:00:18.1]} 92...
Qg7# {[%clk 0:00:09.1]} 0-1

[Event "Late-Titled-Tuesday-Blitz-October-03-2023"]
[Site "Chess.com"]
[Date "2023.10.03"]
[Round "11"]
[White "Garmendiarov"]
[Black "elmusmolamas"]
[Result "1/2-1/2"]
[WhiteElo "2357"]
[BlackElo "2523"]
[TimeControl "180+1"]
[EndTime "16:04:01 PDT"]
[Termination "Game drawn - insufficient material"]

1. d4 {[%clk 0:03:00.9]} 1... d5 {[%clk 0:02:58.6]} 2. Bf4 {[%clk 0:03:01.2]}
2... Nf6 {[%clk 0:02:57.2]} 3. e3 {[%clk 0:03:01.8]} 3... Nc6 {[%clk 0:02:56.1]}
4. Nf3 {[%clk 0:02:57.9]} 4... Bg4 {[%clk 0:02:55.9]} 5. Nbd2 {[%clk 0:02:56]}
5... e6 {[%clk 0:02:54.9]} 6. Bd3 {[%clk 0:02:54.6]} 6... Bd6 {[%clk 0:02:53.5]}
7. c3 {[%clk 0:02:54.2]} 7... O-O {[%clk 0:02:49.2]} 8. O-O {[%clk 0:02:49.8]}
8... e5 {[%clk 0:02:49.5]} 9. dxe5 {[%clk 0:02:42.2]} 9... Nxe5 {[%clk
0:02:50.4]} 10. Be2 {[%clk 0:02:33.3]} 10... Re8 {[%clk 0:02:45]} 11. Nxe5
{[%clk 0:02:28.8]} 11... Bxe2 {[%clk 0:02:45.9]} 12. Qxe2 {[%clk 0:02:27.8]}
12... Bxe5 {[%clk 0:02:45.8]} 13. Bxe5 {[%clk 0:02:26.9]} 13... Rxe5 {[%clk
0:02:46.7]} 14. Nf3 {[%clk 0:02:26.8]} 14... Re8 {[%clk 0:02:46.6]} 15. Rad1
{[%clk 0:02:26.5]} 15... Qe7 {[%clk 0:02:41.6]} 16. Nd4 {[%clk 0:02:25.1]} 16...
c6 {[%clk 0:02:38.5]} 17. h3 {[%clk 0:02:24.9]} 17... Rad8 {[%clk 0:02:32.2]}
18. Qf3 {[%clk 0:02:24.4]} 18... Qe4 {[%clk 0:02:30.7]} 19. Rd2 {[%clk
0:02:16.3]} 19... Qxf3 {[%clk 0:02:29.9]} 20. gxf3 {[%clk 0:02:15.1]} 20... Nd7
{[%clk 0:02:25.6]} 21. Kg2 {[%clk 0:02:09.4]} 21... Nc5 {[%clk 0:02:23.3]} 22.
b3 {[%clk 0:02:04]} 22... g6 {[%clk 0:02:21.1]} 23. Rfd1 {[%clk 0:02:02.5]}
23... Kg7 {[%clk 0:02:12.4]} 24. Ne2 {[%clk 0:02:02.2]} 24... Ne6 {[%clk
0:01:47.5]} 25. Nd4 {[%clk 0:01:55.3]} 25... Nxd4 {[%clk 0:01:39.4]} 26. Rxd4
{[%clk 0:01:56.2]} 26... Rc8 {[%clk 0:01:24.4]} 27. e4 {[%clk 0:01:42.6]} 27...
dxe4 {[%clk 0:01:23.5]} 28. fxe4 {[%clk 0:01:43.5]} 28... Rc7 {[%clk 0:01:23.3]}
29. f3 {[%clk 0:01:37.2]} 29... c5 {[%clk 0:01:09.9]} 30. Rd7 {[%clk 0:01:36.4]}
30... Re7 {[%clk 0:01:10.2]} 31. Rxe7 {[%clk 0:01:32.5]} 31... Rxe7 {[%clk
0:01:11.1]} 32. c4 {[%clk 0:01:31]} 32... b6 {[%clk 0:01:06.1]} 33. Rd6 {[%clk
0:01:29.9]} 33... f5 {[%clk 0:00:32.1]} 34. exf5 {[%clk 0:01:28.1]} 34... Re2+
{[%clk 0:00:30.9]} 35. Kg3 {[%clk 0:01:28.5]} 35... Rxa2 {[%clk 0:00:31.8]} 36.
fxg6 {[%clk 0:01:22.5]} 36... hxg6 {[%clk 0:00:32.7]} 37. Kg4 {[%clk 0:01:13.8]}
37... Kf7 {[%clk 0:00:13.6]} 38. f4 {[%clk 0:01:09.7]} 38... Rb2 {[%clk
0:00:08.2]} 39. Rd7+ {[%clk 0:01:01.9]} 39... Kf6 {[%clk 0:00:09.1]} 40. Rxa7
{[%clk 0:01:02.2]} 40... Rxb3 {[%clk 0:00:09.6]} 41. Rc7 {[%clk 0:01:01.1]}
41... Rb4 {[%clk 0:00:08.7]} 42. Rc6+ {[%clk 0:01:00.5]} 42... Kf7 {[%clk
0:00:09.5]} 43. Kg5 {[%clk 0:01:00.6]} 43... Rxc4 {[%clk 0:00:09.1]} 44. Rxb6
{[%clk 0:01:00.3]} 44... Rc1 {[%clk 0:00:08.2]} 45. Rf6+ {[%clk 0:00:59.3]}
45... Ke7 {[%clk 0:00:08.7]} 46. Kxg6 {[%clk 0:00:54.5]} 46... c4 {[%clk
0:00:07.4]} 47. Rc6 {[%clk 0:00:53.3]} 47... Kd7 {[%clk 0:00:06.8]} 48. Rc5
{[%clk 0:00:52.8]} 48... Kd6 {[%clk 0:00:07.6]} 49. Rc8 {[%clk 0:00:53]} 49...
Kd7 {[%clk 0:00:08.4]} 50. Ra8 {[%clk 0:00:14.7]} 50... c3 {[%clk 0:00:07.8]}
51. Ra4 {[%clk 0:00:14.8]} 51... Kd6 {[%clk 0:00:04.3]} 52. Rc4 {[%clk
0:00:14.4]} 52... Kd5 {[%clk 0:00:05.2]} 53. Rc8 {[%clk 0:00:14.4]} 53... c2
{[%clk 0:00:06.1]} 54. Kf6 {[%clk 0:00:13.5]} 54... Ke4 {[%clk 0:00:04.6]} 55.
f5 {[%clk 0:00:13.4]} 55... Kf4 {[%clk 0:00:03.8]} 56. h4 {[%clk 0:00:12.6]}
56... Kg4 {[%clk 0:00:04]} 57. h5 {[%clk 0:00:10.8]} 57... Kxh5 {[%clk
0:00:04.4]} 58. Kf7 {[%clk 0:00:11.3]} 58... Kg4 {[%clk 0:00:01.8]} 59. f6
{[%clk 0:00:11.6]} 59... Kg5 {[%clk 0:00:02.6]} 60. Kg7 {[%clk 0:00:11.2]} 60...
Kf5 {[%clk 0:00:01.6]} 61. Kf7 {[%clk 0:00:11.5]} 61... Ke5 {[%clk 0:00:01.9]}
62. Ke7 {[%clk 0:00:11.4]} 62... Kd5 {[%clk 0:00:02.4]} 63. Kf8 {[%clk
0:00:11.1]} 63... Rf1 {[%clk 0:00:02.1]} 64. Rxc2 {[%clk 0:00:10.3]} 64... Rxf6+
{[%clk 0:00:03]} 65. Ke7 {[%clk 0:00:10.7]} 65... Rf5 {[%clk 0:00:03.6]} 66.
Rd2+ {[%clk 0:00:10.8]} 66... Ke4 {[%clk 0:00:04.3]} 67. Re2+ {[%clk 0:00:11.2]}
67... Kd3 {[%clk 0:00:05.1]} 68. Ra2 {[%clk 0:00:11.8]} 68... Rf4 {[%clk
0:00:04.8]} 69. Ra3+ {[%clk 0:00:12.3]} 69... Kc2 {[%clk 0:00:05.4]} 70. Ra2+
{[%clk 0:00:12.5]} 70... Kb3 {[%clk 0:00:06]} 71. Ra7 {[%clk 0:00:13.4]} 71...
Rh4 {[%clk 0:00:04.7]} 72. Rb7+ {[%clk 0:00:13.8]} 72... Kc3 {[%clk 0:00:04.8]}
73. Rc7+ {[%clk 0:00:13.3]} 73... Kb4 {[%clk 0:00:05.5]} 74. Rd7 {[%clk
0:00:12.1]} 74... Ka5 {[%clk 0:00:05.5]} 75. Rd6 {[%clk 0:00:11.9]} 75... Kb5
{[%clk 0:00:05.5]} 76. Rd5+ {[%clk 0:00:11.6]} 76... Kc6 {[%clk 0:00:05.3]} 77.
Rf5 {[%clk 0:00:12.5]} 77... Rh7+ {[%clk 0:00:04.5]} 78. Rf7 {[%clk 0:00:12.9]}
78... Rh5 {[%clk 0:00:04.4]} 79. Rf6+ {[%clk 0:00:13.3]} 79... Kc5 {[%clk
0:00:03.8]} 80. Ke6 {[%clk 0:00:13.6]} 80... Rh7 {[%clk 0:00:03.8]} 81. Rf5+
{[%clk 0:00:14.1]} 81... Kc6 {[%clk 0:00:03.9]} 82. Rf7 {[%clk 0:00:15]} 82...
Rh6+ {[%clk 0:00:03.7]} 83. Rf6 {[%clk 0:00:15.9]} 83... Rh1 {[%clk 0:00:04.2]}
84. Kf7+ {[%clk 0:00:15.8]} 84... Kd5 {[%clk 0:00:03.6]} 85. Kg6 {[%clk
0:00:16.1]} 85... Rg1+ {[%clk 0:00:03.7]} 86. Kf7 {[%clk 0:00:16.5]} 86... Ke5
{[%clk 0:00:03.9]} 87. Re6+ {[%clk 0:00:16.8]} 87... Kd5 {[%clk 0:00:04.5]} 88.
Rf6 {[%clk 0:00:17.1]} 88... Rh1 {[%clk 0:00:04.8]} 89. Rf5+ {[%clk 0:00:16.9]}
89... Ke4 {[%clk 0:00:04.6]} 90. Rf6 {[%clk 0:00:17.5]} 90... Ra1 {[%clk
0:00:04.6]} 91. Re6+ {[%clk 0:00:18]} 91... Kf5 {[%clk 0:00:05.1]} 92. Re7
{[%clk 0:00:18.1]} 92... Kg5 {[%clk 0:00:04.8]} 93. Re5+ {[%clk 0:00:18]} 93...
Kh6 {[%clk 0:00:04.3]} 94. Re6+ {[%clk 0:00:18.1]} 94... Kh7 {[%clk 0:00:03.9]}
95. Re4 {[%clk 0:00:17.7]} 95... Rf1+ {[%clk 0:00:04.5]} 96. Ke6 {[%clk
0:00:17.4]} 96... Kg7 {[%clk 0:00:04.3]} 97. Rg4+ {[%clk 0:00:17.5]} 97... Kf8
{[%clk 0:00:04.8]} 98. Ke5 {[%clk 0:00:17.7]} 98... Re1+ {[%clk 0:00:05]} 99.
Re4 {[%clk 0:00:18.1]} 99... Rxe4+ {[%clk 0:00:05.1]} 100. Kxe4 {[%clk 0:00:19]}
1/2-1/2